Cogmind - Beta 15 @@@ ROGUE MODE // 2025.10.13 @ 06:04:30 Player: aliser Result: Self-destructed Performance ------------- Evolutions (1) 500 Regions Visited (2) 400 Robots Destroyed (15) 75 Value Destroyed (316) 316 Prototype IDs (0) 0 Alien Tech Used (0) 0 Bonus (0) 0 TOTAL SCORE: 1291 Bonus ------- None Cogmind --------- Core Integrity 278/400 Matter 150/450 Energy 250/250 System Corruption 1% Temperature Cool (9) Movement Walking (190) Ox1 Location -9/Materials Parts ------- > --- POWER (1) -------- Ion Engine > --- PROPULSION (3) --- Aluminum Leg Aluminum Leg > --- UTILITY (3) ------ Medium Storage Unit Large Matter Pod > --- WEAPON (2) ------- Grenade Launcher > --- INVENTORY (10) --- Light Ion Engine Light Ion Engine Aluminum Leg Improved Heat Sink Signal Interpreter Assault Rifle Mining Laser Hammer Peak State ------------ > --- POWER ------------ Light Ion Engine > --- PROPULSION ------- Aluminum Leg Aluminum Leg Aluminum Leg > --- UTILITY ---------- Medium Storage Unit Large Matter Pod > --- WEAPON ----------- Assault Rifle Assault Rifle > --- INVENTORY -------- Ion Engine Light Ion Engine Light Ion Engine Aluminum Leg Improved Heat Sink Grenade Launcher Mining Laser Hammer [Rating: 9] Favorites ----------- Power Light Ion Engine Engine Light Ion Engine Propulsion Aluminum Leg Leg Aluminum Leg Utility Small Storage Unit Storage Small Storage Unit Protection Core Shielding Weapon Assault Rifle Ballistic Gun Assault Rifle Launcher Grenade Launcher Build | -11 -10 -9 ------- Run | Yrd Mat Mat Slots Evolved 2 | . . 2 Power . | . . . Propulsion 1 | . . 1 Utility 1 | . . 1 Weapon . | . . . Parts Attached 14 | 6 5 3 Power 3 | 1 1 1 Engine 3 | 1 1 1 Core . | . . . Reactor . | . . . Propulsion 4 | 2 1 1 Treads . | . . . Leg 4 | 2 1 1 Wheel . | . . . Hover . | . . . Flight . | . . . Utility 4 | 1 3 . Device . | . . . Storage 3 | 1 2 . Processor . | . . . Hackware . | . . . Protection 1 | . 1 . Artifact . | . . . Weapon 3 | 2 . 1 Energy Gun . | . . . Energy Cannon . | . . . Ballistic Gun 2 | 2 . . Ballistic Cannon . | . . . Launcher 1 | . . 1 Special Weapon . | . . . Impact Weapon . | . . . Slashing Weapon . | . . . Piercing Weapon . | . . . Special Melee Weapon . | . . . Unidentified Prototypes . | . . . Parts Lost 3 | . . 3 Power 1 | . . 1 Propulsion 1 | . . 1 Utility . | . . . Weapon 1 | . . 1 Highest Loss Streak 3 | . . 3 To Critical Strikes . | . . . Average Backups 6 | 1 5 8 Power 2 | . 2 2 Propulsion 1 | . 1 1 Utility 1 | . . 1 Weapon 2 | 1 1 2 Tool/Special . | . . . Unused Backups 8 | . 1 7 Power 2 | . . 2 Propulsion 1 | . . 1 Utility 2 | . . 2 Weapon 3 | . 1 2 Tool/Special . | . . . Average Slot Usage (%) 92 | . 96 87 Engine 12 | . 14 10 Leg 30 | . 28 32 Storage 18 | . 14 22 Protection 5 | . 9 . Ballistic Gun 24 | . 28 20 Peak Build Rating 9 | 6 8 9 Average Rating 7 | 3 7 8 On Entrance 4 | . 6 8 Naked Turns . | . . . Heaviest Build 23 | 14 20 23 Greatest Support 30 | 20 20 30 Greatest Overweight (x) . | . . . Average Overweight (x) . | . . . Largest Inventory Capacity 10 | 8 10 10 Average Capacity 8 | 7 8 10 Most Carried 9 | 5 8 9 Average Carried 6 | 1 6 8 Final Capacity 10 | 8 10 10 Final Carried 8 | 2 8 8 Class Distribution -------------------- 100% | Mutant Dominant Class ---------------- Mutant | -10/Materials Mutant | -9/Materials Resources | -11 -10 -9 ----------- Run | Yrd Mat Mat Matter Collected 506 | 252 253 1 Remotely . | . . . Salvage Created 391 | . 311 80 Parts 26 | . 19 7 Haulers Intercepted 1 | . 1 . Recyclers Shooed . | . . . Parts Field Recycled . | . . . Retrieved Matter . | . . . Parts Self-Destructed . | . . . Prevented . | . . . Kills | -11 -10 -9 ------- Run | Yrd Mat Mat Combat Hostiles Destroyed 12 | . 10 2 Guns 10 | . 10 . AOE 2 | . . 2 Classes Destroyed 5 | . 4 1 Worker 1 | . . 1 Hauler 1 | . 1 . Watcher 1 | . 1 . Swarmer 6 | . 6 . Grunt 6 | . 4 2 Best Kill Streak 3 | . 3 3 Combat Bots Only 3 | . 3 2 Max Kills in Single Turn 2 | . 2 1 Gunslinging . | . . . Exploded 1 | . . 1 Melee . | . . . Uniques/NPCs Destroyed . | . . . Combat | -11 -10 -9 -------- Run | Yrd Mat Mat Hostile Shots Fired 85 | . 55 30 Missed 28 | . 17 11 Hits 57 | . 38 19 Projectile 57 | . 38 19 Critical Strikes 2 | . 1 1 Part Disruptions 1 | . . 1 Damage Taken 724 | . 383 341 Core 197 | . 75 122 Absorbed by Shields . | . . . Redirected to Shielding 5 | . 5 . Regen/Repaired (Parts) 16 | . 16 . Core Remaining (%) 85 | 100 70 . Volleys Fired 50 | . 42 8 Largest 2 | . 2 2 Hottest 50 | . 40 50 Shots Fired 96 | . 84 12 Gun 92 | . 84 8 Cannon . | . . . Launcher 4 | . . 4 Special . | . . . Kinetic 92 | . 84 8 Thermal . | . . . Explosive 4 | . . 4 Electromagnetic . | . . . Robot Hit Streak 11 | . 11 3 Robot Miss Streak 3 | . 3 2 Penetration Max . | . . . Secondary Targets . | . . . Shots Hit Robots 59 | . 54 5 Core Hits 26 | . 18 8 Critical Kills . | . . . Critical Parts Destroyed . | . . . Critical Strikes . | . . . Melee Attacks . | . . . Impact . | . . . Slashing . | . . . Piercing . | . . . Sneak Attacks . | . . . Combat Hostiles . | . . . Follow-up Attacks . | . . . Damage Inflicted 865 | . 683 182 Guns 722 | . 683 39 Cannons . | . . . Explosions 143 | . . 143 Melee . | . . . Ramming . | . . . Kinetic 722 | . 683 39 Thermal . | . . . Explosive 107 | . . 107 Electromagnetic 36 | . . 36 Impact . | . . . Slashing . | . . . Piercing . | . . . Highest Corruption 1 | . . 1 Average Corruption 1 | . . 1 Corruption Purged . | . . . Corruption Blocked . | . . . Overload Shots . | . . . Overflow Damage . | . . . Projectiles . | . . . Explosions . | . . . Melee . | . . . Knockbacks . | . . . Impact . | . . . Kinetic . | . . . Secondary . | . . . Self-Inflicted Damage 91 | . . 91 Shots 3 | . . 3 Rammed . | . . . Targets Rammed . | . . . Kicked . | . . . Crushed . | . . . Highest Temperature 14 | . 9 14 Average Temperature 5 | . 4 5 Received Heat Transfer 270 | . 150 120 Siege Activations . | . . . Martial Activations . | . . . Shielding Activations . | . . . Robots Disrupted . | . . . Combat Hostiles . | . . . Robots Corrupted . | . . . Combat Hostiles . | . . . Parts Fried . | . . . Impact Corruptions . | . . . Robots Melted . | . . . Combat Hostiles . | . . . Parts Melted . | . . . Heat Transferred . | . . . Parts Sabotaged . | . . . Parts Stolen . | . . . Parts Stripped . | . . . Power Chain Reactions 1 | . . 1 Alert | -11 -10 -9 ------- Run | Yrd Mat Mat Maximum Alert Level . | . . . Low Security (%) 100 | 100 100 100 Level 1 . | . . . Level 2 . | . . . Level 3 . | . . . Level 4 . | . . . Level 5 . | . . . High Security . | . . . Max Security . | . . . Peak Influence 107 | . 107 67 Initial 36 | . . 36 Average 30 | . 53 9 Influence Increases 378 | . 279 99 Destroy 0b10 Robot/C 240 | . 200 40 Destroy 0b10 Robot/NC 15 | . 10 5 Destroy Leader 64 | . 54 10 Disable Machine 30 | . 15 15 Destroy Structure 29 | . . 29 Influence Decreases 335 | . 192 143 Entered New Map 51 | . . 51 Time Decay 254 | . 192 62 Lost Part 30 | . . 30 Squads Dispatched 3 | . 2 1 Investigation 2 | . 2 . Extermination . | . . . Reinforcement 1 | . . 1 Assault . | . . . Garrison . | . . . Intercept . | . . . Searches Triggered . | . . . Construction Impeded . | . . . Haulers Reinforced . | . . . Active Scanning Responses . | . . . Cargo Convoy Interrupts . | . . . Stealth | -11 -10 -9 --------- Run | Yrd Mat Mat Distress Signals 1 | . . 1 Communications Jammed . | . . . Distress Signals . | . . . Times Spotted 19 | . 11 8 Peak Tracking Total 6 | . 4 6 Tactical Retreats . | . . . Traps | -11 -10 -9 ------- Run | Yrd Mat Mat Traps Triggered . | . . . Indirectly . | . . . Trap Hack Attempts . | . . . Triggered . | . . . Disarmed . | . . . Reprogrammed . | . . . Reused . | . . . Traps Extracted . | . . . Installed . | . . . Triggered . | . . . Machines | -11 -10 -9 ---------- Run | Yrd Mat Mat Machines Disabled 3 | . 2 1 Max in Single Turn 1 | . 1 1 Machines Repaired . | . . . Machines Dismantled . | . . . Machines Sabotaged . | . . . Overloaded Fab Kills . | . . . Hacking | -11 -10 -9 --------- Run | Yrd Mat Mat Machines Accessed 3 | . 3 . Terminals 2 | . 2 . Fabricators . | . . . Repair Stations 1 | . 1 . Recycling Units . | . . . Scanalyzers . | . . . Garrison Access . | . . . Total Hacks 4 | . 4 . Successful 1 | . 1 . Failed 3 | . 3 . Catastrophic 2 | . 2 . Database Lockouts . | . . . Manual 5 | . 5 . Terminals 3 | . 3 . Fabricators . | . . . Repair Stations 1 | . 1 . Recycling Units . | . . . Scanalyzers . | . . . Garrison Access . | . . . Terminal Hacks . | . . . Fabricator Hacks . | . . . Repair Station Hacks . | . . . Recycling Unit Hacks . | . . . Scanalyzer . | . . . Garrison Access Hacks . | . . . Unauthorized Hacks 1 | . 1 . Terminals . | . . . Fabricators . | . . . Repair Stations 1 | . 1 . Patch 1 | . 1 . Recycling Units . | . . . Scanalyzers . | . . . Garrison Access . | . . . Data Cores Recovered . | . . . Used . | . . . Hacking Detections 2 | . 2 . Full Trace Events 1 | . 1 . Feedback Events . | . . . Feedback Blocked . | . . . Robot Schematics Acquired . | . . . Robots Built . | . . . Authchips . | . . . Time . | . . . Total Robot Build Rating . | . . . Part Schematics Acquired . | . . . Parts Built . | . . . Authchips . | . . . Time . | . . . Total Part Build Rating . | . . . Parts Repaired . | . . . Time . | . . . Parts Recycled . | . . . Recycled Matter . | . . . Retrieved Matter . | . . . Retrieved Components . | . . . Parts Scanalyzed . | . . . Part Schematics Acquired . | . . . Parts Damaged . | . . . Bothacking | -11 -10 -9 ------------ Run | Yrd Mat Mat Used RIF Installer . | . . . Robots Hacked . | . . . Non-combat . | . . . Combat . | . . . Robot Hacks Applied . | . . . Relay Couplers Released . | . . . Fabnet Peak Effective % . | . . . Robots Rewired . | . . . Allies Hacked . | . . . Hacks Repelled . | . . . Allies | -11 -10 -9 -------- Run | Yrd Mat Mat Total Allies . | . . . Largest Group . | . . . Highest-Rated Group . | . . . Highest-Rated Ally . | . . . Total Orders . | . . . Ally Attacks . | . . . Total Damage . | . . . Kills . | . . . Allies Corrupted . | . . . Allies Melted . | . . . Intel | -11 -10 -9 ------- Run | Yrd Mat Mat Active Infowar (turns) . | . . . Robot Analysis Total . | . . . Derelict Logs Recovered . | . . . Drone Launches . | . . . Drone Recoveries . | . . . Exploration | -11 -10 -9 ------------- Run | Yrd Mat Mat Turns Passed 958 | 72 465 421 Spaces Moved 426 | 52 264 110 Core 3 | 3 . . Treads . | . . . Legs 423 | 49 264 110 Wheels . | . . . Hover . | . . . Flight . | . . . Fastest Speed 50 | 50 120 120 Average Speed 119 | 115 120 120 Slowest Speed 120 | 120 120 120 Overloaded Moves . | . . . Propulsion Burnouts . | . . . Robots Hopped . | . . . Potential Cave-ins . | . . . Cave-ins Triggered . | . . . Exploration Rate (%) 22 | 4 46 16 Regions Visited 2 Branch Regions . Pre-discovered Areas . | . . . Known Exits Taken . | . . . Unknown Exits Taken 2 | 1 1 . Scrap Searched . | . . . Spaces Dug 8 | . . 8 Terrain Destroyed 32 | . . 32 Melee . | . . . Projectile . | . . . AOE 32 | . . 32 Terrain Rammed . | . . . Walls Destroyed . | . . . Machines Disabled . | . . . Actions | -11 -10 -9 --------- Run | Yrd Mat Mat Total 777 | 62 329 386 Wait 268 | . 5 263 Move 424 | 51 263 110 Hop . | . . . Pick Up 14 | 5 7 2 Fast Attach 5 | 3 2 . Attach 5 | 3 . 2 Detach . | . . . Swap 5 | . 4 1 Drop 6 | . 6 . Fire 50 | . 42 8 Melee . | . . . Ram . | . . . Kick . | . . . Crush . | . . . Escape Stasis . | . . . Rewire . | . . . Trap . | . . . Miscellaneous . | . . . Route ------- -11/Scrapyard -10/Materials (discovered 2 exits: [*Mat] / [*Min]) -9/Materials History --------- Turn | Location | Event 2 | -11/Scrapyard | Discovered new exit (range 16) 73 | -11/Scrapyard | Entered Materials 278 | -10/Materials | Discovered new exit (range 16) 301 | -10/Materials | Build established: Mutant 503 | -10/Materials | Discovered new exit (range 13) 538 | -10/Materials | Entered another Materials area 538 | -9/Materials | Evolved 2 slots: Propulsion x1, Utility x1 959 | -9/Materials | Self-destructed Last Messages --------------- 00591_ O-16 Technician: "IFF HANDSHAKE FAILED. SECURING TERMINAL." 00594_ ALERT: Hostiles spotted, dispatching reinforcements to Terminal M007. 00915_ G-34 Mercenary destroyed. 00919_ Neutrino Reactor explodes. 00919_ K-01 Serf destroyed. 00919_ Chain reaction triggered in Lgt. Ion Engine. 00923_ Acquired 1 matter. 00927_ U-05 Engineer lays Concrete. 00930_ U-05 Engineer builds a Wall. 00930_ U-05 Engineer lays Concrete. 00932_ U-05 Engineer builds a Door. 00934_ R-06 Scavenger collects Corrupted Med. Matter Pod. 00936_ U-05 Engineer lays Concrete. 00937_ U-05 Engineer builds a Wall. 00938_ R-06 Scavenger collects Corrupted Wheel. 00943_ R-06 Scavenger collects Corrupted Ion Engine. 00947_ Aluminum Leg destroyed. 00950_ Critical hit (Burn: +37). 00956_ Assault Rifle destroyed. Map ----- +----------------------------------------------------+ | ?????????????????????????????????? | | ?????????????????????????????????? | | ?????????????????????????????????? | | ?????????????????????????????????? | | ?????????????????????????????????? | | ?????????????????????????????????? | | ?????????????????????????????????? | | ?????????????????????????????????? | | ?????????????????????????????????? | | ?????????????????????????????????? | | ??????? ????????????????????????? | | ??????# ????????????????????????? | | ??????# ""??????????????????????? | | ??????# """?????????????????????? | | ??????# ???? ????????? | | ??????# ] ???? #??????? | | ?????## #?? #??????? | | ????## #?# #??????? | | ????? Y ### #??????? | | ????## ! # #??????? | | ????? #? ####???? | | ?????? "" #?? ##### | | ??????# T" #??# | | ??????# "" #??# | | ??????? ????# | | ??????#+#@####### | | ??????# g | | ??????+ g | | ??????# g Y | | ??????# %% | | ??????# #####/###########??? | | ??????# #?# = * #?????????? | | ??????# ### #?????????? | | ??????# +* #?????????? | | ???#### # #?????????? | | ???# # = #?????????? | | ???# ### #?????????? | | ???# ## ##?????????? | | ???# ######## # ###??????????? | | ???# #??????# + #????????????? | | ???# #??????# # !! #????????????? | | ???# #??????# # !] #????????????? | | ??##+######## # !] #????????????? | | ??# # #######????????????? | | ??# # ###????????????????? | | ??# """ """ # #????????????????? | | ??# """ """ + #????????????????? | | ??# """ """ # #????????????????? | | ??# # #????????????????? | | ??# # #????????????????? | +----------------------------------------------------+ Best States ------------- Heat Dissipation 28 Energy Generation 10 Energy Capacity 250 Matter Stores 300 Matter Capacity 450 Sight Range 16 Terrain Scan Density 10 Core Shielding 20 Evasion (%) 55 Item Schematics ----------------- None Robot Schematics ------------------ None Fabricated ------------ Nothing Repaired ---------- Nothing Alien Tech Used ----------------- None Achievements -------------- None Challenges ------------ None Game ------ Seed MicroVisualMonowheel Manual? 0 Play Time 00:09:11 Cumulative 24.8 hours Start 2025.10.13 @ 05:57:23 End 2025.10.13 @ 06:04:30 Sessions 1 Manual Loads 0 Difficulty Rogue Special Mode None Game No. 29 Rogue 29 Adventurer 0 Explorer 0 Win Type - Total 0 Types 0/0/0/0/0/0/0/0/0/0 Lore% 18 Gallery% 24 Achievement% 21 Wizard Run 0 Options --------- Layout 0 ASCII 0 Keyboard 0 Movement Mouse Keybinds 0 Fullscreen 1 Font 36/Smallcaps Map View 76x50 Zoom Use 0% Tactical HUD 1 Map Filters NONE Filters NONE Steam 1 RUN: f9bd1421-f204-492a-9684-52ffe4510c61